[Event "Early-Titled-Tuesday-Blitz-November-28-2023"]
[Site "Chess.com"]
[Date "2023.11.28"]
[Round "6"]
[White "AlexTruskavetsky"]
[Black "SharapovEvgeny"]
[Result "1/2-1/2"]
[WhiteElo "2491"]
[BlackElo "2600"]
[TimeControl "180+1"]
[EndTime "9:11:49 PST"]
[Termination "Game drawn by repetition"]

1. d4 {[%clk 0:03:00.5]} 1... Nf6 {[%clk 0:02:59.9]} 2. c4 {[%clk 0:03:00.6]}
2... e6 {[%clk 0:03:00.1]} 3. Nc3 {[%clk 0:03:00.7]} 3... Bb4 {[%clk 0:02:59.9]}
4. e3 {[%clk 0:03:00.9]} 4... c5 {[%clk 0:02:59.7]} 5. a3 {[%clk 0:03:00.7]}
5... Bxc3+ {[%clk 0:02:59.6]} 6. bxc3 {[%clk 0:03:01.3]} 6... d6 {[%clk
0:03:00.2]} 7. Bd3 {[%clk 0:03:01.1]} 7... Nc6 {[%clk 0:03:00.1]} 8. Ne2 {[%clk
0:03:01]} 8... e5 {[%clk 0:03:00.3]} 9. O-O {[%clk 0:02:58.7]} 9... O-O {[%clk
0:03:00]} 10. d5 {[%clk 0:02:57.8]} 10... Ne7 {[%clk 0:02:59.9]} 11. e4 {[%clk
0:02:58.2]} 11... Nh5 {[%clk 0:02:57]} 12. f4 {[%clk 0:02:45.1]} 12... exf4
{[%clk 0:02:55.7]} 13. Nxf4 {[%clk 0:02:44.3]} 13... Nxf4 {[%clk 0:02:55.7]} 14.
Bxf4 {[%clk 0:02:44.6]} 14... Ng6 {[%clk 0:02:55.9]} 15. Bg3 {[%clk 0:02:43.2]}
15... f6 {[%clk 0:02:56.2]} 16. h4 {[%clk 0:02:40.2]} 16... Ne5 {[%clk
0:02:55.6]} 17. Bxe5 {[%clk 0:02:40.4]} 17... fxe5 {[%clk 0:02:55.7]} 18. Rxf8+
{[%clk 0:02:39.8]} 18... Qxf8 {[%clk 0:02:55.7]} 19. Qe2 {[%clk 0:02:37.8]}
19... Bd7 {[%clk 0:02:52]} 20. Rf1 {[%clk 0:02:37.3]} 20... Qe7 {[%clk
0:02:52.3]} 21. g3 {[%clk 0:02:37.3]} 21... Rf8 {[%clk 0:02:51.6]} 22. Rxf8+
{[%clk 0:02:35.1]} 22... Qxf8 {[%clk 0:02:51.7]} 23. Qf2 {[%clk 0:02:35]} 23...
Qxf2+ {[%clk 0:02:51.4]} 24. Kxf2 {[%clk 0:02:35.5]} 24... Kf7 {[%clk
0:02:51.7]} 25. Kf3 {[%clk 0:02:35.6]} 25... h6 {[%clk 0:02:51.9]} 26. g4 {[%clk
0:02:36.1]} 26... g5 {[%clk 0:02:51.7]} 27. h5 {[%clk 0:02:36.2]} 27... Ke7
{[%clk 0:02:51.7]} 28. Be2 {[%clk 0:02:36.4]} 28... Kd8 {[%clk 0:02:51.8]} 29.
Ke3 {[%clk 0:02:37]} 29... Kc7 {[%clk 0:02:52.4]} 30. Kd2 {[%clk 0:02:37.4]}
30... Kb6 {[%clk 0:02:53.1]} 31. Kc2 {[%clk 0:02:37]} 31... Ba4+ {[%clk
0:02:52.8]} 32. Kb2 {[%clk 0:02:36.4]} 32... Ka5 {[%clk 0:02:53.4]} 33. Bf3
{[%clk 0:02:35.4]} 33... b5 {[%clk 0:02:49.5]} 34. Be2 {[%clk 0:02:35.7]} 34...
b4 {[%clk 0:02:48.1]} 35. axb4+ {[%clk 0:01:31]} 35... cxb4 {[%clk 0:02:46.8]}
36. Bf3 {[%clk 0:01:30.4]} 36... bxc3+ {[%clk 0:02:40.7]} 37. Kxc3 {[%clk
0:01:30.6]} 37... Kb6 {[%clk 0:02:37.7]} 38. Be2 {[%clk 0:01:30.4]} 38... Kc5
{[%clk 0:02:36.9]} 39. Bf3 {[%clk 0:01:30.1]} 39... a5 {[%clk 0:02:35.9]} 40.
Be2 {[%clk 0:01:30.5]} 40... Bd7 {[%clk 0:02:35.5]} 41. Bf3 {[%clk 0:01:30.1]}
41... Bc8 {[%clk 0:02:35.1]} 42. Be2 {[%clk 0:01:30.2]} 42... Ba6 {[%clk
0:02:35]} 43. Kb3 {[%clk 0:01:08.2]} 43... a4+ {[%clk 0:02:32.3]} 44. Kxa4
{[%clk 0:00:58.3]} 44... Bxc4 {[%clk 0:02:32.5]} 45. Bxc4 {[%clk 0:00:58.9]}
45... Kxc4 {[%clk 0:02:32.7]} 46. Ka5 {[%clk 0:00:59.6]} 46... Kd4 {[%clk
0:02:31]} 47. Kb5 {[%clk 0:01:00.1]} 47... Kxe4 {[%clk 0:02:31.1]} 48. Kc6
{[%clk 0:01:00.6]} 48... Kf4 {[%clk 0:02:26.4]} 49. Kxd6 {[%clk 0:01:00.8]}
49... e4 {[%clk 0:02:27.1]} 50. Kc6 {[%clk 0:01:01.3]} 50... e3 {[%clk
0:02:27.5]} 51. d6 {[%clk 0:01:01.9]} 51... e2 {[%clk 0:02:27.9]} 52. d7 {[%clk
0:01:02.4]} 52... e1=Q {[%clk 0:02:28]} 53. d8=Q {[%clk 0:01:02.1]} 53... Qe6+
{[%clk 0:02:23.9]} 54. Kc5 {[%clk 0:01:00.1]} 54... Kxg4 {[%clk 0:02:15]} 55.
Qd1+ {[%clk 0:00:59.8]} 55... Kh4 {[%clk 0:02:10.6]} 56. Qh1+ {[%clk 0:00:59.7]}
56... Qh3 {[%clk 0:02:10.3]} 57. Qe1+ {[%clk 0:00:59.9]} 57... Kxh5 {[%clk
0:02:08.4]} 58. Qe2+ {[%clk 0:00:58.7]} 58... Qg4 {[%clk 0:02:07.6]} 59. Qh2+
{[%clk 0:00:57.6]} 59... Kg6 {[%clk 0:02:06.1]} 60. Qd6+ {[%clk 0:00:57.7]}
60... Kh5 {[%clk 0:02:04.9]} 61. Qh2+ {[%clk 0:00:56.9]} 61... Qh4 {[%clk
0:02:04.8]} 62. Qe2+ {[%clk 0:00:57.2]} 62... g4 {[%clk 0:02:05]} 63. Qe8+
{[%clk 0:00:57.4]} 63... Kg5 {[%clk 0:02:02.8]} 64. Qe7+ {[%clk 0:00:57.4]}
64... Kh5 {[%clk 0:02:02.3]} 65. Qf7+ {[%clk 0:00:57.5]} 65... Kg5 {[%clk
0:02:02.6]} 66. Qe7+ {[%clk 0:00:57.6]} 66... Kh5 {[%clk 0:02:03.1]} 67. Qf7+
{[%clk 0:00:57.2]} 67... Kg5 {[%clk 0:02:03.6]} 68. Qe7+ {[%clk 0:00:57]}
1/2-1/2

[Event "Early-Titled-Tuesday-Blitz-November-28-2023"]
[Site "Chess.com"]
[Date "2023.11.28"]
[Round "6"]
[White "PattyCastillo"]
[Black "Haykoooo0o"]
[Result "0-1"]
[WhiteElo "2036"]
[BlackElo "2422"]
[TimeControl "180+1"]
[EndTime "9:11:51 PST"]
[Termination "Haykoooo0o won by checkmate"]

1. d4 {[%clk 0:02:58.8]} 1... f5 {[%clk 0:02:58.8]} 2. Nf3 {[%clk 0:02:58.8]}
2... Nf6 {[%clk 0:02:59]} 3. e3 {[%clk 0:02:56]} 3... g6 {[%clk 0:02:59.2]} 4.
Bd3 {[%clk 0:02:55.5]} 4... Bg7 {[%clk 0:02:59.9]} 5. O-O {[%clk 0:02:55.4]}
5... O-O {[%clk 0:03:00.6]} 6. b3 {[%clk 0:02:55.6]} 6... d6 {[%clk 0:03:01.3]}
7. Bb2 {[%clk 0:02:55.8]} 7... c6 {[%clk 0:03:02]} 8. Nbd2 {[%clk 0:02:55.7]}
8... Qe8 {[%clk 0:03:00.4]} 9. c4 {[%clk 0:02:54.3]} 9... a5 {[%clk 0:03:00]}
10. Qe2 {[%clk 0:02:52.4]} 10... Nbd7 {[%clk 0:03:00.5]} 11. e4 {[%clk 0:02:52]}
11... f4 {[%clk 0:02:54.5]} 12. e5 {[%clk 0:02:50.8]} 12... dxe5 {[%clk
0:02:53.6]} 13. dxe5 {[%clk 0:02:50.6]} 13... Nh5 {[%clk 0:02:50.8]} 14. Ne4
{[%clk 0:02:29.7]} 14... a4 {[%clk 0:02:34]} 15. Rfd1 {[%clk 0:02:10.5]} 15...
h6 {[%clk 0:02:19.6]} 16. Qc2 {[%clk 0:01:59.1]} 16... g5 {[%clk 0:02:15.3]} 17.
e6 {[%clk 0:01:39.5]} 17... Ndf6 {[%clk 0:02:13.7]} 18. Nxf6+ {[%clk 0:01:38.2]}
18... Nxf6 {[%clk 0:02:12.4]} 19. Bg6 {[%clk 0:01:35.5]} 19... axb3 {[%clk
0:02:09.5]} 20. axb3 {[%clk 0:01:34.5]} 20... Rxa1 {[%clk 0:02:09.9]} 21. Bxe8
{[%clk 0:01:32.6]} 21... Rxd1+ {[%clk 0:02:07.8]} 22. Qxd1 {[%clk 0:01:32.8]}
22... Rxe8 {[%clk 0:02:08.4]} 23. Qe2 {[%clk 0:01:24]} 23... Rd8 {[%clk
0:02:07.4]} 24. h3 {[%clk 0:01:22.4]} 24... Rd6 {[%clk 0:02:07]} 25. Nd4 {[%clk
0:01:13.6]} 25... c5 {[%clk 0:01:48.8]} 26. Nf5 {[%clk 0:01:07.5]} 26... Rxe6
{[%clk 0:01:49.4]} 27. Nxe7+ {[%clk 0:01:07]} 27... Kf7 {[%clk 0:01:45.5]} 28.
Qd2 {[%clk 0:00:57.5]} 28... Rxe7 {[%clk 0:01:45.5]} 29. Qd6 {[%clk 0:00:54.1]}
29... Ne4 {[%clk 0:01:34.1]} 30. Qd8 {[%clk 0:00:46.9]} 30... Bxb2 {[%clk
0:01:31.8]} 31. Qxc8 {[%clk 0:00:46.6]} 31... Bd4 {[%clk 0:01:30.8]} 32. Qf5+
{[%clk 0:00:43.3]} 32... Kg7 {[%clk 0:01:28.8]} 33. h4 {[%clk 0:00:39]} 33...
Bxf2+ {[%clk 0:01:28.9]} 34. Kh2 {[%clk 0:00:37.5]} 34... Bg3+ {[%clk 0:01:26]}
35. Kg1 {[%clk 0:00:35]} 35... Nd6 {[%clk 0:01:23.8]} 36. Qc2 {[%clk 0:00:29.5]}
36... Re1# {[%clk 0:01:22.4]} 0-1

[Event "Early-Titled-Tuesday-Blitz-November-28-2023"]
[Site "Chess.com"]
[Date "2023.11.28"]
[Round "6"]
[White "Ron_Weasley_Chess"]
[Black "vladgoncharov"]
[Result "1/2-1/2"]
[WhiteElo "2421"]
[BlackElo "2620"]
[TimeControl "180+1"]
[EndTime "9:11:52 PST"]
[Termination "Game drawn by agreement"]

1. Nf3 {[%clk 0:03:00.4]} 1... Nf6 {[%clk 0:02:50.8]} 2. g3 {[%clk 0:03:00.2]}
2... c5 {[%clk 0:02:48.7]} 3. Bg2 {[%clk 0:02:59.2]} 3... Nc6 {[%clk 0:02:49.3]}
4. O-O {[%clk 0:02:58.9]} 4... g6 {[%clk 0:02:47.2]} 5. c4 {[%clk 0:02:58.5]}
5... d6 {[%clk 0:02:46.4]} 6. Nc3 {[%clk 0:02:58.5]} 6... Bg7 {[%clk 0:02:45.8]}
7. d4 {[%clk 0:02:58.6]} 7... cxd4 {[%clk 0:02:45.2]} 8. Nxd4 {[%clk 0:02:59.5]}
8... Bd7 {[%clk 0:02:45.3]} 9. e3 {[%clk 0:02:53.7]} 9... O-O {[%clk 0:02:43.5]}
10. b3 {[%clk 0:02:53.3]} 10... Qc8 {[%clk 0:02:37.1]} 11. Bb2 {[%clk
0:02:52.3]} 11... Bh3 {[%clk 0:02:36.1]} 12. Rc1 {[%clk 0:02:49.7]} 12... Bxg2
{[%clk 0:02:34.4]} 13. Kxg2 {[%clk 0:02:50.6]} 13... h5 {[%clk 0:02:26.4]} 14.
Nd5 {[%clk 0:02:49]} 14... Qd7 {[%clk 0:01:56.6]} 15. Nxc6 {[%clk 0:02:48.3]}
15... Qxc6 {[%clk 0:01:56.3]} 16. Bxf6 {[%clk 0:02:47.6]} 16... Bxf6 {[%clk
0:01:55.7]} 17. Qf3 {[%clk 0:02:48.2]} 17... Kg7 {[%clk 0:01:51.5]} 18. Rfd1
{[%clk 0:02:44.6]} 18... Rfe8 {[%clk 0:01:34.5]} 19. Qe4 {[%clk 0:02:12.8]}
19... Rac8 {[%clk 0:01:30.4]} 20. Nxf6 {[%clk 0:02:08.3]} 20... Kxf6 {[%clk
0:01:29.3]} 21. Rd5 {[%clk 0:02:02.2]} 21... e6 {[%clk 0:01:21]} 22. Qf3+ {[%clk
0:01:24.2]} 22... Ke7 {[%clk 0:01:11.5]} 23. Rdd1 {[%clk 0:01:19.1]} 23... Qxf3+
{[%clk 0:01:10.9]} 24. Kxf3 {[%clk 0:01:20]} 24... Rc6 {[%clk 0:01:10.1]} 25. e4
{[%clk 0:01:17.9]} 25... Rec8 {[%clk 0:01:09]} 26. a4 {[%clk 0:01:17.1]} 26...
a6 {[%clk 0:01:06.5]} 27. Rd3 {[%clk 0:01:13.2]} 27... b5 {[%clk 0:01:01.3]} 28.
axb5 {[%clk 0:01:10.2]} 28... axb5 {[%clk 0:01:01.1]} 29. Rdc3 {[%clk
0:01:10.1]} 29... Rc5 {[%clk 0:00:54.1]} 30. Ke3 {[%clk 0:01:09.7]} 30... d5
{[%clk 0:00:52.2]} 31. exd5 {[%clk 0:01:04.6]} 31... exd5 {[%clk 0:00:51.9]} 32.
Kd4 {[%clk 0:01:04.5]} 32... dxc4 {[%clk 0:00:46.6]} 33. bxc4 {[%clk 0:01:05.4]}
33... Kd6 {[%clk 0:00:45]} 34. cxb5 {[%clk 0:01:02.7]} 34... Rd5+ {[%clk
0:00:40.3]} 35. Ke4 {[%clk 0:01:01.4]} 35... Rxc3 {[%clk 0:00:40.2]} 36. Rxc3
{[%clk 0:01:02.3]} 36... Rxb5 {[%clk 0:00:40.5]} 37. Kf3 {[%clk 0:01:01]}
1/2-1/2

[Event "Early-Titled-Tuesday-Blitz-November-28-2023"]
[Site "Chess.com"]
[Date "2023.11.28"]
[Round "6"]
[White "Aslanov_Umid"]
[Black "Felix-Rose"]
[Result "1-0"]
[WhiteElo "2517"]
[BlackElo "2344"]
[TimeControl "180+1"]
[EndTime "9:11:52 PST"]
[Termination "Aslanov_Umid won by resignation"]

1. e4 {[%clk 0:03:00.9]} 1... e5 {[%clk 0:02:59.1]} 2. Nf3 {[%clk 0:03:00.2]}
2... Nc6 {[%clk 0:02:58.8]} 3. Bc4 {[%clk 0:03:00.9]} 3... Nf6 {[%clk
0:02:58.5]} 4. d3 {[%clk 0:03:00.7]} 4... Bc5 {[%clk 0:02:58.1]} 5. c3 {[%clk
0:03:00.4]} 5... d6 {[%clk 0:02:57.2]} 6. O-O {[%clk 0:02:58.8]} 6... a5 {[%clk
0:02:56.6]} 7. Bb5 {[%clk 0:02:55.3]} 7... O-O {[%clk 0:02:53.3]} 8. Nbd2 {[%clk
0:02:48]} 8... Ne7 {[%clk 0:02:50.8]} 9. d4 {[%clk 0:02:46.4]} 9... exd4 {[%clk
0:02:15.1]} 10. cxd4 {[%clk 0:02:47.3]} 10... Bb6 {[%clk 0:02:13.7]} 11. h3
{[%clk 0:02:45.2]} 11... Ng6 {[%clk 0:02:12.5]} 12. Re1 {[%clk 0:02:33.9]} 12...
c6 {[%clk 0:02:11.5]} 13. Bf1 {[%clk 0:02:31.4]} 13... Re8 {[%clk 0:02:11]} 14.
e5 {[%clk 0:02:15.4]} 14... dxe5 {[%clk 0:01:35.1]} 15. dxe5 {[%clk 0:02:16.3]}
15... Nxe5 {[%clk 0:00:36.1]} 16. Nxe5 {[%clk 0:02:07.4]} 16... Qd4 {[%clk
0:00:35.8]} 17. Nd3 {[%clk 0:02:06.2]} 17... Bf5 {[%clk 0:00:32.3]} 18. Nf3
{[%clk 0:01:59]} 18... Rxe1 {[%clk 0:00:23.2]} 19. Qxe1 {[%clk 0:01:59.9]} 19...
Qd5 {[%clk 0:00:12.9]} 20. Qe5 {[%clk 0:01:48]} 20... Qd7 {[%clk 0:00:09.6]} 21.
Be3 {[%clk 0:01:32.2]} 21... Re8 {[%clk 0:00:09.1]} 22. Nc5 {[%clk 0:01:15.6]}
22... Rxe5 {[%clk 0:00:05.5]} 23. Nxd7 {[%clk 0:01:15.8]} 23... Rxe3 {[%clk
0:00:06.1]} 24. Nxf6+ {[%clk 0:01:15.4]} 24... gxf6 {[%clk 0:00:06.6]} 25. fxe3
{[%clk 0:01:16.1]} 25... Bxe3+ {[%clk 0:00:07.5]} 26. Kh1 {[%clk 0:01:16.8]} 1-0

[Event "Early-Titled-Tuesday-Blitz-November-28-2023"]
[Site "Chess.com"]
[Date "2023.11.28"]
[Round "6"]
[White "Agibileg"]
[Black "alexrustemov"]
[Result "0-1"]
[WhiteElo "2661"]
[BlackElo "2870"]
[TimeControl "180+1"]
[EndTime "9:11:53 PST"]
[Termination "alexrustemov won by resignation"]

1. d4 {[%clk 0:03:00.9]} 1... d5 {[%clk 0:02:59.8]} 2. c4 {[%clk 0:02:50.2]}
2... dxc4 {[%clk 0:02:59.7]} 3. Nf3 {[%clk 0:02:49.4]} 3... e6 {[%clk
0:02:59.3]} 4. Nc3 {[%clk 0:02:48.6]} 4... a6 {[%clk 0:02:59]} 5. e4 {[%clk
0:02:45.1]} 5... b5 {[%clk 0:02:54]} 6. Be2 {[%clk 0:02:44.9]} 6... Bb7 {[%clk
0:02:53.1]} 7. O-O {[%clk 0:02:43.5]} 7... Nf6 {[%clk 0:02:51.5]} 8. a4 {[%clk
0:02:40.1]} 8... Nxe4 {[%clk 0:02:46.6]} 9. axb5 {[%clk 0:02:38.4]} 9... Nxc3
{[%clk 0:02:45.7]} 10. bxc3 {[%clk 0:02:39.3]} 10... axb5 {[%clk 0:02:46.1]} 11.
Rxa8 {[%clk 0:02:37.1]} 11... Bxa8 {[%clk 0:02:46.7]} 12. Ne5 {[%clk 0:02:37.9]}
12... Bd6 {[%clk 0:02:38.9]} 13. f4 {[%clk 0:02:38.1]} 13... O-O {[%clk
0:02:36.6]} 14. Bf3 {[%clk 0:02:05.3]} 14... Bxf3 {[%clk 0:02:27.9]} 15. Rxf3
{[%clk 0:01:53.7]} 15... Nd7 {[%clk 0:02:24.2]} 16. Qe2 {[%clk 0:01:37.1]} 16...
Nb6 {[%clk 0:02:14.8]} 17. f5 {[%clk 0:01:29.2]} 17... exf5 {[%clk 0:02:12.5]}
18. Rxf5 {[%clk 0:01:28.4]} 18... Qe8 {[%clk 0:02:08]} 19. Qg4 {[%clk
0:00:36.1]} 19... Qe6 {[%clk 0:02:04.7]} 20. Bg5 {[%clk 0:00:24.3]} 20... Bxe5
{[%clk 0:01:49.7]} 21. dxe5 {[%clk 0:00:23.5]} 21... g6 {[%clk 0:01:47.7]} 22.
Rf4 {[%clk 0:00:22.7]} 22... Qxg4 {[%clk 0:01:46.4]} 23. Rxg4 {[%clk 0:00:23.6]}
23... Nd5 {[%clk 0:01:44.4]} 24. Bd2 {[%clk 0:00:21.7]} 24... Re8 {[%clk
0:01:42.7]} 25. Re4 {[%clk 0:00:20.5]} 25... f5 {[%clk 0:01:38.8]} 26. Re1
{[%clk 0:00:19.3]} 26... Kf7 {[%clk 0:01:35.7]} 27. Kf2 {[%clk 0:00:11.6]} 27...
Ke6 {[%clk 0:01:35.3]} 28. Kf3 {[%clk 0:00:10.7]} 28... Ra8 {[%clk 0:01:32.9]}
29. Rb1 {[%clk 0:00:10.1]} 29... c6 {[%clk 0:01:32.2]} 30. g4 {[%clk 0:00:07.4]}
30... Ra2 {[%clk 0:01:28.7]} 31. Be1 {[%clk 0:00:07.3]} 31... fxg4+ {[%clk
0:01:27.8]} 0-1

[Event "Early-Titled-Tuesday-Blitz-November-28-2023"]
[Site "Chess.com"]
[Date "2023.11.28"]
[Round "6"]
[White "SashaKuzhilniy"]
[Black "vladoboch"]
[Result "1-0"]
[WhiteElo "2634"]
[BlackElo "2438"]
[TimeControl "180+1"]
[EndTime "9:11:57 PST"]
[Termination "SashaKuzhilniy won on time"]

1. d4 {[%clk 0:03:00.9]} 1... Nf6 {[%clk 0:02:46.3]} 2. Nf3 {[%clk 0:03:00.8]}
2... d5 {[%clk 0:02:44.8]} 3. c3 {[%clk 0:02:59]} 3... Bf5 {[%clk 0:02:44.1]} 4.
Qb3 {[%clk 0:02:56.6]} 4... Qc8 {[%clk 0:02:41.5]} 5. c4 {[%clk 0:02:56.9]} 5...
e6 {[%clk 0:02:39.7]} 6. cxd5 {[%clk 0:02:51.1]} 6... exd5 {[%clk 0:02:39.2]} 7.
Nc3 {[%clk 0:02:50.3]} 7... c6 {[%clk 0:02:36.9]} 8. Bf4 {[%clk 0:02:47.5]} 8...
Nbd7 {[%clk 0:02:33.8]} 9. e3 {[%clk 0:02:42.2]} 9... Be7 {[%clk 0:02:33.3]} 10.
h3 {[%clk 0:02:41.4]} 10... h6 {[%clk 0:02:33.6]} 11. Be2 {[%clk 0:02:41]} 11...
O-O {[%clk 0:02:33.4]} 12. O-O {[%clk 0:02:37.8]} 12... a5 {[%clk 0:02:26.4]}
13. Rac1 {[%clk 0:02:35.9]} 13... Ne4 {[%clk 0:02:02.7]} 14. Nxd5 {[%clk
0:02:32.5]} 14... Bf6 {[%clk 0:01:35.4]} 15. Nxf6+ {[%clk 0:02:26.1]} 15...
Ndxf6 {[%clk 0:01:34.4]} 16. Rfd1 {[%clk 0:02:21.3]} 16... Nd5 {[%clk 0:01:29]}
17. Bh2 {[%clk 0:02:21.5]} 17... a4 {[%clk 0:01:29]} 18. Qa3 {[%clk 0:02:21.9]}
18... Qd8 {[%clk 0:01:05.7]} 19. Nd2 {[%clk 0:02:12.9]} 19... Re8 {[%clk
0:01:04.3]} 20. Nxe4 {[%clk 0:02:12.2]} 20... Bxe4 {[%clk 0:01:04]} 21. Qd6
{[%clk 0:02:02.2]} 21... a3 {[%clk 0:00:46.2]} 22. Qxd8 {[%clk 0:02:00.7]} 22...
Rexd8 {[%clk 0:00:45.4]} 23. b3 {[%clk 0:01:58.3]} 23... Nb4 {[%clk 0:00:43.2]}
24. Rd2 {[%clk 0:01:57.7]} 24... c5 {[%clk 0:00:27.2]} 25. Rxc5 {[%clk
0:01:52.5]} 25... Rdc8 {[%clk 0:00:24.7]} 26. Rxc8+ {[%clk 0:01:46.6]} 26...
Rxc8 {[%clk 0:00:24.8]} 27. Bd6 {[%clk 0:01:46.9]} 27... Nc2 {[%clk 0:00:14.6]}
28. f3 {[%clk 0:01:41.9]} 28... Bg6 {[%clk 0:00:09.6]} 29. e4 {[%clk 0:01:41.7]}
29... Rc6 {[%clk 0:00:04.2]} 30. d5 {[%clk 0:01:36.2]} 30... Rc3 {[%clk
0:00:01.9]} 31. Kf2 {[%clk 0:01:27.9]} 31... Ne3 {[%clk 0:00:01.9]} 32. Bb4
{[%clk 0:01:22.2]} 1-0

[Event "Early-Titled-Tuesday-Blitz-November-28-2023"]
[Site "Chess.com"]
[Date "2023.11.28"]
[Round "6"]
[White "LileKoridze"]
[Black "Ramla2020"]
[Result "1-0"]
[WhiteElo "2384"]
[BlackElo "2540"]
[TimeControl "180+1"]
[EndTime "9:12:00 PST"]
[Termination "LileKoridze won by resignation"]

1. d4 {[%clk 0:03:00.9]} 1... Nf6 {[%clk 0:02:58.7]} 2. c4 {[%clk 0:03:00]} 2...
e6 {[%clk 0:02:58.7]} 3. Nf3 {[%clk 0:02:57.5]} 3... Bb4+ {[%clk 0:02:55.6]} 4.
Bd2 {[%clk 0:02:57.5]} 4... a5 {[%clk 0:02:55.1]} 5. g3 {[%clk 0:02:55.9]} 5...
O-O {[%clk 0:02:53.5]} 6. Bg2 {[%clk 0:02:55.6]} 6... d5 {[%clk 0:02:53.6]} 7.
O-O {[%clk 0:02:49.2]} 7... dxc4 {[%clk 0:02:52.5]} 8. Qc1 {[%clk 0:02:49.1]}
8... Nc6 {[%clk 0:02:49.5]} 9. Qxc4 {[%clk 0:02:43.8]} 9... Ne4 {[%clk
0:02:44.4]} 10. Be3 {[%clk 0:02:39]} 10... Be7 {[%clk 0:02:26.2]} 11. Rd1 {[%clk
0:02:37.9]} 11... Nb4 {[%clk 0:02:21.6]} 12. Ne5 {[%clk 0:02:33.8]} 12... Nd6
{[%clk 0:02:16.7]} 13. Qc1 {[%clk 0:02:33.1]} 13... f6 {[%clk 0:02:15.5]} 14.
Nc4 {[%clk 0:02:29.2]} 14... c6 {[%clk 0:02:14.4]} 15. b3 {[%clk 0:02:15.5]}
15... Nf5 {[%clk 0:02:06]} 16. Nc3 {[%clk 0:02:09.4]} 16... Nxe3 {[%clk
0:02:02.5]} 17. Nxe3 {[%clk 0:02:07.6]} 17... Nd5 {[%clk 0:02:01.9]} 18. Nexd5
{[%clk 0:02:06.4]} 18... exd5 {[%clk 0:02:02.8]} 19. e4 {[%clk 0:02:07]} 19...
dxe4 {[%clk 0:01:58.2]} 20. Nxe4 {[%clk 0:02:06.7]} 20... Be6 {[%clk 0:01:56.3]}
21. Nc5 {[%clk 0:02:06.4]} 21... Bd5 {[%clk 0:01:40.4]} 22. Nxb7 {[%clk
0:02:03.9]} 22... Qb6 {[%clk 0:01:40.2]} 23. Nc5 {[%clk 0:02:03.4]} 23... Rad8
{[%clk 0:01:37.7]} 24. Qe3 {[%clk 0:01:56]} 24... Bxc5 {[%clk 0:01:27]} 25. dxc5
{[%clk 0:01:55.4]} 25... Qa7 {[%clk 0:01:21.9]} 26. Bxd5+ {[%clk 0:01:53.6]}
26... Rxd5 {[%clk 0:01:21.4]} 27. Qe6+ {[%clk 0:01:37.4]} 27... Qf7 {[%clk
0:01:19.8]} 28. Qxc6 {[%clk 0:01:36.8]} 28... Re5 {[%clk 0:01:10.3]} 29. Re1
{[%clk 0:01:26.1]} 29... Qh5 {[%clk 0:01:02.7]} 30. Rxe5 {[%clk 0:01:24.4]}
30... Qxe5 {[%clk 0:01:03.6]} 31. Rd1 {[%clk 0:01:23.9]} 31... h5 {[%clk
0:01:02.7]} 32. Qd5+ {[%clk 0:01:23.3]} 32... Rf7 {[%clk 0:00:53.1]} 33. Qxe5
{[%clk 0:01:20.9]} 33... fxe5 {[%clk 0:00:54]} 34. c6 {[%clk 0:01:21.1]} 34...
Rc7 {[%clk 0:00:53]} 35. Rc1 {[%clk 0:01:21.1]} 35... Kf7 {[%clk 0:00:52.5]} 36.
a3 {[%clk 0:01:21.3]} 36... Ke6 {[%clk 0:00:53.4]} 37. b4 {[%clk 0:01:21.5]}
37... axb4 {[%clk 0:00:54.3]} 38. axb4 {[%clk 0:01:21.5]} 38... Kd6 {[%clk
0:00:43.9]} 39. b5 {[%clk 0:01:20.4]} 39... e4 {[%clk 0:00:44.8]} 40. Kf1 {[%clk
0:01:15.2]} 40... g5 {[%clk 0:00:41.3]} 41. Ke2 {[%clk 0:01:12.6]} 41... Rf7
{[%clk 0:00:40.9]} 42. b6 {[%clk 0:01:10.3]} 1-0

[Event "Early-Titled-Tuesday-Blitz-November-28-2023"]
[Site "Chess.com"]
[Date "2023.11.28"]
[Round "6"]
[White "GlavkonVVS"]
[Black "NovozhilovSemen"]
[Result "0-1"]
[WhiteElo "2541"]
[BlackElo "2728"]
[TimeControl "180+1"]
[EndTime "9:12:02 PST"]
[Termination "NovozhilovSemen won by resignation"]

1. c4 {[%clk 0:03:00.9]} 1... c5 {[%clk 0:02:58.4]} 2. Nc3 {[%clk 0:03:01.3]}
2... Nc6 {[%clk 0:02:58.5]} 3. g3 {[%clk 0:03:01.9]} 3... g6 {[%clk 0:02:58.3]}
4. Bg2 {[%clk 0:03:02.5]} 4... Bg7 {[%clk 0:02:58.8]} 5. Nf3 {[%clk 0:03:00.5]}
5... d6 {[%clk 0:02:59.2]} 6. d3 {[%clk 0:03:01.1]} 6... Bf5 {[%clk 0:02:59.5]}
7. O-O {[%clk 0:03:01.6]} 7... Qd7 {[%clk 0:02:59.1]} 8. h4 {[%clk 0:02:59.8]}
8... Bh3 {[%clk 0:02:56.3]} 9. a3 {[%clk 0:03:00.3]} 9... h6 {[%clk 0:02:45.3]}
10. Bd2 {[%clk 0:02:59.1]} 10... Nd4 {[%clk 0:02:42.9]} 11. Nxd4 {[%clk
0:02:54.9]} 11... cxd4 {[%clk 0:02:43.8]} 12. Nd5 {[%clk 0:02:50]} 12... Bxg2
{[%clk 0:02:31.9]} 13. Kxg2 {[%clk 0:02:49.2]} 13... e6 {[%clk 0:02:27.5]} 14.
Nf4 {[%clk 0:02:48.8]} 14... Ne7 {[%clk 0:02:26.5]} 15. Rh1 {[%clk 0:02:39.9]}
15... d5 {[%clk 0:02:26.3]} 16. Bb4 {[%clk 0:02:36.2]} 16... Nc6 {[%clk
0:02:19.2]} 17. cxd5 {[%clk 0:02:35]} 17... Nxb4 {[%clk 0:02:19.2]} 18. axb4
{[%clk 0:02:31.5]} 18... e5 {[%clk 0:02:18.9]} 19. Nh3 {[%clk 0:02:25]} 19...
Qxd5+ {[%clk 0:02:19]} 20. f3 {[%clk 0:02:25.2]} 20... O-O {[%clk 0:02:19.2]}
21. Ra5 {[%clk 0:02:23.3]} 21... b5 {[%clk 0:02:16.5]} 22. h5 {[%clk 0:02:21.9]}
22... a6 {[%clk 0:02:04.1]} 23. Nf2 {[%clk 0:02:18.9]} 23... g5 {[%clk
0:02:01.7]} 24. g4 {[%clk 0:02:17.7]} 24... f5 {[%clk 0:01:58.3]} 25. gxf5
{[%clk 0:02:16.9]} 25... Rxf5 {[%clk 0:01:59.2]} 26. Ne4 {[%clk 0:02:15.6]}
26... Bf8 {[%clk 0:01:52.6]} 27. Qd2 {[%clk 0:02:13]} 27... Qf7 {[%clk
0:01:38.8]} 28. Rc1 {[%clk 0:02:00.8]} 28... g4 {[%clk 0:01:31.8]} 29. fxg4
{[%clk 0:01:59]} 29... Rf4 {[%clk 0:01:31.8]} 30. Ng3 {[%clk 0:01:38]} 30...
Rxg4 {[%clk 0:01:27.8]} 31. Rh1 {[%clk 0:01:18.4]} 31... Qg7 {[%clk 0:01:20.8]}
32. Rh3 {[%clk 0:01:17.5]} 32... e4 {[%clk 0:01:20.1]} 33. dxe4 {[%clk
0:01:14.6]} 33... Bd6 {[%clk 0:01:19.6]} 34. Ra3 {[%clk 0:01:13.7]} 34... Kh8
{[%clk 0:01:10.5]} 35. Rf3 {[%clk 0:01:11.5]} 35... Rg8 {[%clk 0:01:09.4]} 36.
Qd3 {[%clk 0:01:06.9]} 36... Be5 {[%clk 0:01:08.8]} 37. b3 {[%clk 0:01:05.9]}
37... Qe7 {[%clk 0:01:06.3]} 38. Kf2 {[%clk 0:01:03.7]} 38... Qxb4 {[%clk
0:01:03.4]} 39. Rf5 {[%clk 0:01:01.9]} 39... Bxg3+ {[%clk 0:00:59.6]} 40. Rxg3
{[%clk 0:01:01.1]} 40... Rxg3 {[%clk 0:01:00]} 41. Qxg3 {[%clk 0:00:58.1]} 41...
Rxg3 {[%clk 0:01:00.9]} 42. Kxg3 {[%clk 0:00:58.5]} 42... Qe1+ {[%clk
0:01:00.6]} 43. Kf3 {[%clk 0:00:57.6]} 43... Qf1+ {[%clk 0:01:00.4]} 44. Kg4
{[%clk 0:00:57.5]} 44... Qxe2+ {[%clk 0:01:00.3]} 45. Kf4 {[%clk 0:00:58.2]}
45... d3 {[%clk 0:01:00.8]} 46. Rd5 {[%clk 0:00:58]} 46... d2 {[%clk 0:01:00.9]}
0-1